[Event "WCCC G12 2019"]
[Site "Weifang"]
[Date "2019.08.30"]
[Round "9.10"]
[White "Sun, Chen"]
[Black "Denic, Hana"]
[Result "1/2-1/2"]
[ECO "C28"]
[WhiteElo "1529"]
[BlackElo "1711"]
[Annotator "NA"]
[PlyCount "75"]
[EventDate "2019.08.21"]
[EventType "swiss"]
[EventCountry "CHN"]
[SourceTitle "playchess.com"]
[Source "ChessBase"]
[SourceQuality "1"]
[TimeControl "40/5400+30:1800+30"]

1. e4 {[%emt 1:30:30]} e5 {[%emt 1:30:30]} 2. Bc4 {[%emt 0:00:30]} Nf6 {[%emt 0:00:30]} 3. d3 {[%emt 0:00:30]} Nc6 {[%emt 0:00:30]} 4. Nc3 {[%emt 0:00:30]} Bb4 {[%emt 0:00:30]} 5. a3 {[%emt 0:00:30]} Bxc3+ {[%emt 0:00:30]} 6. bxc3 {[%emt 0:00:30]} h6 {[%emt 0:00:30]} 7. Ne2 {[%emt 0:00:30]} O-O {[%emt 0:00:30]} 8. O-O {[%emt 0:00:30]} d5 {[%emt 0:00:30]} 9. exd5 {[%emt 0:00:30]} Nxd5 {[%emt 0:00:30]} 10. h3 {[%emt 0:00:30]} Be6 {[%emt 0:00:30]} 11. Ba2 {[%emt 0:00:30]} Qd6 {[%emt 0:00:30]} 12. c4 {[%emt 0:00:30]} Nde7 {[%emt 0:00:30]} 13. Nc3 {[%emt 0:00:30]} f5 {[%emt 0:00:30]} 14. Kh1 {[%emt 0:00:30]} f4 {[%emt 0:00:30]} 15. Ne4 {[%emt 0:00:30]} Qd8 {[%emt 0:00:30]} 16. Rg1 {[%emt 0:00:30]} Qc8 {[%emt 0:00:30]} 17. Kh2 {[%emt 0:00:30]} Nd4 {[%emt 0:00:30]} 18. c3 {[%emt 0:00:30]} Ndc6 {[%emt 0:00:30]} 19. d4 {[%emt 0:00:30]} Bf5 {[%emt 0:00:30]} 20. f3 {[%emt 0:00:30]} exd4 {[%emt 0:00:30]} 21. cxd4 {[%emt 0:00:30]} Ng6 {[%emt 0:00:30]} 22. Bb2 {[%emt 0:00:30]} Qd8 {[%emt 0:00:30]} 23. Qd2 {[%emt 0:00:30]} Qh4 {[%emt 0:00:30]} 24. Qe1 {[%emt 0:00:30]} Qh5 {[%emt 0:00:30]} 25. Qf2 {[%emt 0:00:30]} Nh4 {[%emt 0:00:30]} 26. c5+ {[%emt 0:00:30]} Kh8 {[%emt 0:00:30]} 27. d5 {[%emt 0:00:30]} Ne7 {[%emt 0:00:30]} 28. Raf1 {[%emt 0:00:30]} Bd7 {[%emt 0:00:30]} 29. g4 {[%emt 0:00:30]} fxg3+ {[%emt 0:00:30]} 30. Qxg3 {[%emt 0:00:30]} Neg6 {[%emt 0:00:30]} 31. Nd2 {[%emt 0:00:30]} Rae8 {[%emt 0:00:30]} 32. Rf2 {[%emt 0:00:30]} Re3 {[%emt 0:00:30]} 33. Bb1 {[%emt 0:00:30]} Nxf3+ {[%emt 0:00:30]} 34. Nxf3 {[%emt 0:00:30]} Rfxf3 {[%emt 0:00:30]} 35. Bxg7+ {[%emt 0:00:30]} Kg8 {[%emt 0:00:30]} 36. Rxf3 {[%emt 0:00:30]} Rxf3 {[%emt 0:00:30]} 37. Bxg6 {[%emt 0:00:30]} Rxg3 {[%emt 0:00:30]} 38. Rxg3 {[%emt 0:00:30]} 1/2-1/2